[Event "FIDE WCCC Open-08 2024"]
[Site "Montesilvano"]
[Date "2024.11.18"]
[Round "4.24"]
[White "Szumiec, Jan"]
[Black "Morozevich, Kirill Aleks"]
[Result "1-0"]
[ECO "C42"]
[WhiteElo "1678"]
[BlackElo "1484"]
[Annotator "NA RC"]
[PlyCount "53"]
[EventDate "2024.11.18"]
[EventType "swiss"]
[EventCountry "ITA"]
[SourceTitle "playchess.com"]
[Source "ChessBase"]
[SourceQuality "1"]
[TimeControl "5400+30"]

1. e4 {[%emt 0:00:09]} e5 {[%emt 0:00:09]} 2. Nf3 {[%emt 0:00:08]} Nf6 {[%emt 0:00:07]} 3. Nxe5 {[%emt 0:01:00]} d6 {[%emt 0:00:07]} 4. Nf3 {[%emt 0:00:14]} Nxe4 {[%emt 0:00:04]} 5. Nc3 {[%emt 0:00:48]} Nxc3 {[%emt 0:00:06]} 6. dxc3 {[%emt 0:00:13]} Be7 {[%emt 0:00:04]} 7. Be3 {[%emt 0:00:16]} Nd7 {[%emt 0:00:05]} 8. Qd2 {[%emt 0:00:56]} O-O {[%emt 0:00:10]} 9. O-O-O {[%emt 0:00:12]} Nf6 {[%emt 0:00:06]} 10. Bd3 {[%emt 0:00:38]} Be6 {[%emt 0:00:20]} 11. Rhe1 {[%emt 0:02:20]} c5 {[%emt 0:00:16]} 12. Bg5 {[%emt 0:02:31]} Qa5 {[%emt 0:04:38]} 13. a3 {[%emt 0:00:11]} b5 {[%emt 0:00:49]} 14. Qf4 {[%emt 0:01:44]} Rab8 {[%emt 0:04:40]} 15. Qh4 {[%emt 0:05:03]} c4 {[%emt 0:07:21]} 16. Bxf6 {[%emt 0:03:57]} cxd3 {[%emt 0:00:08]} 17. Bxe7 {[%emt 0:01:01]} dxc2 {[%emt 0:00:11]} 18. Rd2 {[%emt 0:10:49]} Rfc8 {[%emt 0:00:38]} 19. Bxd6 {[%emt 0:01:49]} Rb7 {[%emt 0:00:33]} 20. Qe4 {[%emt 0:09:57]} Qa6 {[%emt 0:03:09]} 21. Ng5 {[%emt 0:00:08]} g6 {[%emt 0:00:17]} 22. Nxe6 {[%emt 0:00:33]} fxe6 {[%emt 0:00:09]} 23. Qxe6+ {[%emt 0:00:08]} Rf7 {[%emt 0:00:09]} 24. Re3 {[%emt 0:02:32]} b4 {[%emt 0:00:22]} 25. Rf3 {[%emt 0:02:39]} Rcf8 {[%emt 0:00:59]} 26. Rxf7 {[%emt 0:00:38]} Rxf7 {[%emt 0:00:05]} 27. Qe8+ {[%emt 0:00:32]} 1-0

[Event "FIDE WCCC Open-08 2024"]
[Site "Montesilvano"]
[Date "2024.11.18"]
[Round "4.25"]
[White "Rajabov, Abdurahmon"]
[Black "Le Doan, Minh Thuc"]
[Result "1-0"]
[ECO "B12"]
[WhiteElo "1515"]
[BlackElo "1677"]
[Annotator "NA RC"]
[PlyCount "69"]
[EventDate "2024.11.18"]
[EventType "swiss"]
[EventCountry "ITA"]
[SourceTitle "playchess.com"]
[Source "ChessBase"]
[SourceQuality "1"]
[TimeControl "5400+30"]

1. e4 {[%emt 0:01:49]} c6 {[%emt 0:00:22]} 2. d4 {[%emt 0:00:31]} d5 {[%emt 0:00:06]} 3. e5 {[%emt 0:00:03]} Bf5 {[%emt 0:00:15]} 4. h4 {[%emt 0:00:05]} h5 {[%emt 0:00:10]} 5. Bd3 {[%emt 0:00:11]} Bxd3 {[%emt 0:01:01]} 6. Qxd3 {[%emt 0:00:06]} e6 {[%emt 0:00:31]} 7. Nf3 {[%emt 0:00:04]} Be7 {[%emt 0:08:25]} 8. Ng5 {[%emt 0:00:08]} Nh6 {[%emt 0:02:54]} 9. Nd2 {[%emt 0:00:34]} Bxg5 {[%emt 0:07:57]} 10. hxg5 {[%emt 0:00:42]} Qxg5 {[%emt 0:00:08]} 11. Nf3 {[%emt 0:00:21]} Qe7 {[%emt 0:15:12]} 12. Rxh5 {[%emt 0:00:11]} Nd7 {[%emt 0:02:01]} 13. Bg5 {[%emt 0:00:52]} Qb4+ {[%emt 0:01:09]} 14. Qc3 {[%emt 0:02:56]} Qxc3+ {[%emt 0:02:25]} 15. bxc3 {[%emt 0:00:03]} f6 {[%emt 0:10:58]} 16. Bxh6 {[%emt 0:02:06]} Rxh6 {[%emt 0:00:46]} 17. Rxh6 {[%emt 0:00:03]} gxh6 {[%emt 0:00:12]} 18. Kd2 {[%emt 0:00:31]} fxe5 {[%emt 0:00:32]} 19. Nxe5 {[%emt 0:00:11]} Nxe5 {[%emt 0:00:11]} 20. dxe5 {[%emt 0:00:02]} Kf7 {[%emt 0:00:38]} 21. Ke3 {[%emt 0:00:05]} Kg6 {[%emt 0:00:45]} 22. Rh1 {[%emt 0:00:05]} Rf8 {[%emt 0:00:36]} 23. f4 {[%emt 0:00:09]} c5 {[%emt 0:02:32]} 24. g4 {[%emt 0:00:07]} Rc8 {[%emt 0:00:35]} 25. Rh2 {[%emt 0:00:27]} Rc6 {[%emt 0:00:45]} 26. Rf2 {[%emt 0:00:06]} h5 {[%emt 0:05:42]} 27. f5+ {[%emt 0:01:36]} Kg5 {[%emt 0:03:08]} 28. f6 {[%emt 0:00:08]} Rc8 {[%emt 0:00:43]} 29. gxh5 {[%emt 0:00:05]} Kxh5 {[%emt 0:00:06]} 30. Rg2 {[%emt 0:00:22]} b5 {[%emt 0:05:55]} 31. Rg7 {[%emt 0:00:11]} d4+ {[%emt 0:01:10]} 32. cxd4 {[%emt 0:00:13]} cxd4+ {[%emt 0:00:11]} 33. Kxd4 {[%emt 0:00:06]} Rc4+ {[%emt 0:01:55]} 34. Kd3 {[%emt 0:00:09]} Rc5 {[%emt 0:00:54]} 35. f7 {[%emt 0:00:11]} 1-0

[Event "FIDE WCCC Open-08 2024"]
[Site "Montesilvano"]
[Date "2024.11.18"]
[Round "4.27"]
[White "Pera, Mikolaj"]
[Black "Bisetto, Alessandro Federico"]
[Result "1/2-1/2"]
[ECO "C55"]
[WhiteElo "1446"]
[BlackElo "1671"]
[Annotator "NA RC"]
[PlyCount "108"]
[EventDate "2024.11.18"]
[EventType "swiss"]
[EventCountry "ITA"]
[SourceTitle "playchess.com"]
[Source "ChessBase"]
[SourceQuality "1"]
[TimeControl "5400+30"]

1. e4 {[%emt 0:00:02]} e5 {[%emt 0:00:29]} 2. Nf3 {[%emt 0:00:13]} Nc6 {[%emt 0:00:21]} 3. Bc4 {[%emt 0:00:11]} Nf6 {[%emt 0:00:32]} 4. d3 {[%emt 0:00:07]} d6 {[%emt 0:00:20]} 5. h3 {[%emt 0:00:27]} h6 {[%emt 0:00:11]} 6. Nc3 {[%emt 0:02:25]} Be7 {[%emt 0:02:09]} 7. O-O {[%emt 0:00:25]} O-O {[%emt 0:01:46]} 8. Be3 {[%emt 0:01:05]} Be6 {[%emt 1:28:42]} 9. Bb3 {[%emt 0:01:11]} d5 {[%emt 0:00:00]} 10. exd5 {[%emt 0:00:32]} Nxd5 {[%emt 0:00:00]} 11. Nxd5 {[%emt 0:01:50]} Bxd5 {[%emt 0:00:00]} 12. Qe2 {[%emt 0:01:31]} Bxb3 {[%emt 0:00:00]} 13. axb3 {[%emt 0:00:49]} Nd4 {[%emt 0:00:00]} 14. Nxd4 {[%emt 0:04:48]} exd4 {[%emt 0:00:00]} 15. Bxd4 {[%emt 0:05:58]} Qxd4 {[%emt 0:00:00]} 16. Qxe7 {[%emt 0:00:08]} Qxb2 {[%emt 0:00:00]} 17. Qxc7 {[%emt 0:05:46]} Rac8 {[%emt 0:00:00]} 18. Qxb7 {[%emt 0:00:08]} Qxc2 {[%emt 0:00:00]} 19. Qxa7 {[%emt 0:00:44]} Ra8 {[%emt 0:00:00]} 20. Qe3 {[%emt 0:00:53]} Rxa1 {[%emt 0:00:00]} 21. Rxa1 {[%emt 0:00:09]} Qxb3 {[%emt 0:00:00]} 22. d4 {[%emt 0:01:58]} Rb8 {[%emt 0:00:00]} 23. Qxb3 {[%emt 0:00:17]} Rb7 {[%emt 0:07:30]} 24. Qb4 Rxb4 {[%emt 0:00:00]} 25. Rb1 {[%emt 1:11:23]} Rb3 26. Rd1 {[%emt 0:00:00]} f6 {[%emt 0:00:00]} 27. f3 {[%emt 0:00:00]} Kf7 {[%emt 0:00:00]} 28. Kf2 {[%emt 0:00:00]} Ke6 {[%emt 0:00:00]} 29. Rd2 {[%emt 0:00:00]} g5 {[%emt 0:00:00]} 30. Re2+ {[%emt 0:00:00]} Kf5 {[%emt 0:00:00]} 31. g4+ {[%emt 0:00:00]} Kg6 {[%emt 0:00:00]} 32. Rd2 {[%emt 0:00:00]} Kf7 {[%emt 0:00:00]} 33. Re2 {[%emt 0:00:00]} Kg6 {[%emt 0:00:00]} 34. Re3 {[%emt 0:00:00]} Rb2+ {[%emt 0:00:00]} 35. Re2 {[%emt 0:00:00]} Rb5 {[%emt 0:00:00]} 36. Kg3 {[%emt 0:00:00]} Rd5 {[%emt 0:00:00]} 37. Rd2 {[%emt 0:00:00]} f5 {[%emt 0:00:00]} 38. f4 {[%emt 0:00:00]} Rb5 {[%emt 0:00:00]} 39. Rd3 {[%emt 0:00:00]} Rd5 {[%emt 0:00:00]} 40. fxg5 {[%emt 0:00:00]} hxg5 {[%emt 0:00:00]} 41. gxf5+ {[%emt 0:00:00]} Kxf5 {[%emt 0:00:00]} 42. Kf3 {[%emt 0:00:00]} Rd8 {[%emt 0:00:00]} 43. d5 {[%emt 0:00:00]} Rd6 {[%emt 0:00:00]} 44. Ke3 {[%emt 0:00:00]} Ke5 {[%emt 0:00:00]} 45. Kf3 {[%emt 0:00:00]} Rxd5 {[%emt 0:00:00]} 46. Rxd5+ {[%emt 0:00:00]} Kxd5 {[%emt 0:00:00]} 47. Kg4 {[%emt 0:00:00]} Ke6 {[%emt 0:00:00]} 48. Kxg5 {[%emt 0:00:00]} Kf7 {[%emt 0:00:00]} 49. Kh6 {[%emt 0:00:00]} Kg8 {[%emt 0:00:00]} 50. h4 {[%emt 0:00:00]} Kh8 {[%emt 0:00:00]} 51. Kg6 {[%emt 0:00:00]} Kg8 {[%emt 0:00:00]} 52. h5 {[%emt 0:00:00]} Kh8 {[%emt 0:00:00]} 53. h6 {[%emt 0:00:00]} Kg8 {[%emt 0:00:00]} 54. h7+ {[%emt 0:00:00]} Kh8 {[%emt 0:15:30]} 1/2-1/2

[Event "FIDE WCCC Open-08 2024"]
[Site "Montesilvano"]
[Date "2024.11.18"]
[Round "4.28"]
[White "Melkonyan, Mark"]
[Black "Zhu, Daniel"]
[Result "0-1"]
[ECO "B23"]
[WhiteElo "1445"]
[BlackElo "2050"]
[Annotator "RC"]
[PlyCount "78"]
[EventDate "2024.11.18"]
[EventType "swiss"]
[EventCountry "ITA"]
[SourceTitle "playchess.com"]
[Source "ChessBase"]
[SourceQuality "1"]
[TimeControl "5400+30"]

1. e4 {[%emt 0:00:03]} c5 {[%emt 0:00:10]} 2. Nc3 {[%emt 0:00:05]} Nc6 {[%emt 0:00:07]} 3. f4 {[%emt 0:00:14]} g6 {[%emt 0:00:05]} 4. Nf3 {[%emt 0:00:12]} Bg7 {[%emt 0:00:54]} 5. Bc4 {[%emt 0:00:17]} e6 {[%emt 0:00:24]} 6. d3 {[%emt 0:01:04]} Nge7 {[%emt 0:00:33]} 7. O-O {[%emt 0:00:40]} O-O {[%emt 0:00:10]} 8. Qe1 {[%emt 0:00:56]} d5 {[%emt 0:00:37]} 9. Bb3 {[%emt 0:01:13]} Na5 {[%emt 0:02:04]} 10. Qh4 {[%emt 0:14:37]} a6 {[%emt 0:05:38]} 11. a3 {[%emt 0:10:27]} Nxb3 {[%emt 0:00:59]} 12. cxb3 {[%emt 0:00:10]} Nc6 {[%emt 0:03:47]} 13. Qxd8 {[%emt 0:03:00]} Rxd8 {[%emt 0:00:08]} 14. exd5 {[%emt 0:00:58]} exd5 {[%emt 0:00:10]} 15. Na4 {[%emt 0:03:07]} Bg4 {[%emt 0:03:32]} 16. Nxc5 {[%emt 0:04:31]} Bxf3 {[%emt 0:00:10]} 17. Rxf3 {[%emt 0:01:04]} Nd4 {[%emt 0:00:13]} 18. Rf1 {[%emt 0:08:59]} Nc2 {[%emt 0:00:23]} 19. Be3 {[%emt 0:20:59]} Nxe3 {[%emt 0:00:42]} 20. Nxb7 {[%emt 0:11:41]} Rdb8 {[%emt 0:00:17]} 21. Rf3 {[%emt 0:02:47]} Rxb7 {[%emt 0:00:06]} 22. Rxe3 {[%emt 0:00:38]} Bd4 {[%emt 0:00:04]} 23. Rae1 {[%emt 0:02:41]} Re7 {[%emt 0:00:09]} 24. Kf2 {[%emt 0:00:33]} Rxe3 {[%emt 0:00:13]} 25. Rxe3 {[%emt 0:00:10]} Re8 {[%emt 0:00:04]} 26. Ke2 {[%emt 0:00:50]} Bxe3 {[%emt 0:00:19]} 27. Kf3 {[%emt 0:00:19]} d4 {[%emt 0:00:08]} 28. b4 {[%emt 0:00:59]} Bc1 {[%emt 0:00:08]} 29. a4 {[%emt 0:00:13]} Bxb2 {[%emt 0:00:14]} 30. b5 {[%emt 0:00:10]} axb5 {[%emt 0:00:07]} 31. axb5 {[%emt 0:00:09]} Re3+ {[%emt 0:00:08]} 32. Kg4 {[%emt 0:00:17]} f5+ {[%emt 0:00:21]} 33. Kh4 {[%emt 0:00:46]} Rxd3 {[%emt 0:00:07]} 34. b6 {[%emt 0:00:24]} Rb3 {[%emt 0:00:05]} 35. b7 {[%emt 0:00:09]} d3 {[%emt 0:00:04]} 36. b8=Q+ {[%emt 0:00:28]} Rxb8 {[%emt 0:00:06]} 37. h3 {[%emt 0:00:34]} Rb3 {[%emt 0:00:10]} 38. Kg5 {[%emt 0:00:55]} Kg7 {[%emt 0:00:09]} 39. g4 {[%emt 0:01:21]} Bf6# {[%emt 1:26:15]} 0-1

[Event "FIDE WCCC Open-08 2024"]
[Site "Montesilvano"]
[Date "2024.11.18"]
[Round "4.29"]
[White "Schimming, Wilhelm"]
[Black "Lan, Kai Zhou"]
[Result "0-1"]
[ECO "E62"]
[WhiteElo "1628"]
[BlackElo "1784"]
[Annotator "NA RC"]
[PlyCount "130"]
[EventDate "2024.11.18"]
[EventType "swiss"]
[EventCountry "ITA"]
[SourceTitle "playchess.com"]
[Source "ChessBase"]
[SourceQuality "1"]
[TimeControl "5400+30"]

1. c4 {[%emt 0:00:06]} Nf6 {[%emt 0:00:09]} 2. g3 {[%emt 0:00:02]} g6 {[%emt 0:00:28]} 3. Bg2 {[%emt 0:00:07]} Bg7 {[%emt 0:00:29]} 4. Nc3 {[%emt 0:00:29]} O-O {[%emt 0:00:39]} 5. d4 {[%emt 0:00:02]} d6 {[%emt 0:00:31]} 6. Nf3 {[%emt 0:00:06]} Nc6 {[%emt 0:00:27]} 7. O-O {[%emt 0:19:29]} e5 {[%emt 0:00:48]} 8. h3 {[%emt 0:05:55]} Nd7 {[%emt 0:08:02]} 9. e3 {[%emt 0:14:29]} f5 {[%emt 0:00:54]} 10. h4 {[%emt 0:05:48]} a5 {[%emt 0:08:03]} 11. Ng5 {[%emt 0:00:16]} exd4 {[%emt 0:09:44]} 12. Ne6 {[%emt 0:00:22]} Qe7 {[%emt 0:00:15]} 13. Nxf8 {[%emt 0:00:56]} dxc3 {[%emt 0:00:53]} 14. Nxd7 {[%emt 0:02:01]} cxb2 {[%emt 0:00:29]} 15. Bxb2 {[%emt 0:00:21]} Bxb2 {[%emt 0:01:19]} 16. Rb1 {[%emt 0:01:08]} Bg7 {[%emt 0:04:50]} 17. Bxc6 {[%emt 0:01:10]} bxc6 {[%emt 0:02:42]} 18. Rb8 {[%emt 0:00:29]} Rxb8 {[%emt 0:01:21]} 19. Nxb8 {[%emt 0:00:05]} Qe4 {[%emt 0:03:42]} 20. c5 {[%emt 0:00:33]} Bf8 {[%emt 0:04:18]} 21. Qb1 {[%emt 0:02:00]} Qe8 {[%emt 0:06:02]} 22. cxd6 {[%emt 0:01:31]} Bxd6 {[%emt 0:00:30]} 23. Rc1 {[%emt 0:01:00]} c5 {[%emt 0:02:25]} 24. Qb3+ {[%emt 0:00:21]} Be6 {[%emt 0:05:17]} 25. Qb2 {[%emt 0:00:33]} Bd5 {[%emt 0:02:25]} 26. Qb1 {[%emt 0:03:38]} Bxg3 {[%emt 0:04:47]} 27. Qd3 {[%emt 0:01:37]} Bxa2 {[%emt 0:09:50]} 28. Nd7 {[%emt 0:01:27]} Bxh4 {[%emt 0:00:26]} 29. Rxc5 {[%emt 0:00:20]} Be6 {[%emt 0:09:07]} 30. Rxc7 {[%emt 0:02:02]} a4 {[%emt 0:02:14]} 31. Qd4 {[%emt 0:00:46]} Qd8 {[%emt 0:00:55]} 32. Rb7 {[%emt 0:00:37]} Qa5 {[%emt 0:10:55]} 33. Rb8+ {[%emt 0:01:42]} Kf7 {[%emt 0:00:05]} 34. Ne5+ {[%emt 0:00:10]} Kg7 {[%emt 0:00:26]} 35. Nc6+ {[%emt 0:00:21]} Bf6 {[%emt 0:00:08]} 36. Qxf6+ {[%emt 0:00:06]} Kxf6 {[%emt 0:00:07]} 37. Nxa5 {[%emt 0:00:05]} a3 {[%emt 0:00:12]} 38. Rb1 {[%emt 0:00:05]} a2 {[%emt 0:00:06]} 39. Ra1 {[%emt 0:00:31]} Bd5 {[%emt 0:00:09]} 40. Rd1 {[%emt 0:00:37]} Ke5 {[%emt 0:00:49]} 41. Kf1 {[%emt 0:00:08]} h5 {[%emt 0:01:08]} 42. f4+ {[%emt 0:00:53]} Ke6 {[%emt 0:00:45]} 43. Kg1 {[%emt 0:00:57]} Kf6 {[%emt 0:00:31]} 44. Kf2 {[%emt 0:01:52]} g5 {[%emt 0:00:36]} 45. fxg5+ {[%emt 0:01:05]} Kxg5 {[%emt 0:00:11]} 46. e4 {[%emt 0:35:12]} Bxe4 {[%emt 0:00:25]} 47. Nb3 {[%emt 0:00:00]} h4 {[%emt 0:00:59]} 48. Kg1 {[%emt 0:00:00]} Bc2 {[%emt 0:00:18]} 49. Ra1 {[%emt 0:00:00]} Bxb3 {[%emt 0:00:09]} 50. Kh2 {[%emt 0:00:00]} f4 {[%emt 0:00:48]} 51. Rg1+ {[%emt 0:00:00]} Kh5 {[%emt 0:00:56]} 52. Rf1 {[%emt 0:00:00]} Bc2 {[%emt 0:00:23]} 53. Re1 {[%emt 0:00:00]} Be4 {[%emt 0:01:21]} 54. Ra1 {[%emt 0:00:00]} Bb1 {[%emt 0:00:08]} 55. Kg2 {[%emt 0:00:00]} Kg4 {[%emt 0:00:06]} 56. Kf2 {[%emt 0:00:00]} h3 {[%emt 0:00:07]} 57. Kg1 {[%emt 0:00:00]} Kg3 {[%emt 0:00:11]} 58. Rxa2 {[%emt 0:00:00]} Bxa2 {[%emt 0:00:11]} 59. Kf1 {[%emt 0:00:00]} h2 {[%emt 0:00:09]} 60. Ke2 {[%emt 0:00:00]} h1=Q {[%emt 0:00:14]} 61. Kd3 {[%emt 0:00:00]} f3 {[%emt 0:00:32]} 62. Kd4 {[%emt 0:00:00]} f2 {[%emt 0:00:11]} 63. Ke3 {[%emt 0:00:00]} f1=Q {[%emt 0:00:08]} 64. Kd4 {[%emt 0:00:00]} Qd5+ {[%emt 0:00:13]} 65. Ke3 {[%emt 0:00:00]} Qdd3# {[%emt 0:05:22]} 0-1

[Event "FIDE WCCC Open-08 2024"]
[Site "Montesilvano"]
[Date "2024.11.18"]
[Round "4.30"]
[White "Alloussi, Arian"]
[Black "Charyyev Charyhekim"]
[Result "1-0"]
[ECO "C00"]
[WhiteElo "1745"]
[BlackElo "1589"]
[Annotator "NA RC"]
[PlyCount "113"]
[EventDate "2024.11.18"]
[EventType "swiss"]
[EventCountry "ITA"]
[SourceTitle "playchess.com"]
[Source "ChessBase"]
[SourceQuality "1"]
[TimeControl "5400+30"]

1. e4 {[%emt 0:00:01]} e6 {[%emt 0:00:06]} 2. d3 {[%emt 0:00:08]} d5 {[%emt 0:00:09]} 3. Nd2 {[%emt 0:00:08]} Nf6 {[%emt 0:00:13]} 4. Ngf3 {[%emt 0:00:08]} b6 {[%emt 0:00:13]} 5. g3 {[%emt 0:02:10]} dxe4 {[%emt 0:00:15]} 6. dxe4 {[%emt 0:00:22]} Bc5 {[%emt 0:00:06]} 7. Bg2 {[%emt 0:00:31]} Ba6 {[%emt 0:00:05]} 8. e5 {[%emt 0:03:29]} Ng4 {[%emt 0:00:32]} 9. Ne4 {[%emt 0:01:49]} Qxd1+ {[%emt 0:01:31]} 10. Kxd1 {[%emt 0:00:06]} Nxf2+ {[%emt 0:00:37]} 11. Nxf2 {[%emt 0:00:08]} Bxf2 {[%emt 0:00:44]} 12. Nd2 {[%emt 0:11:25]} c6 {[%emt 0:02:19]} 13. Ne4 {[%emt 0:03:06]} Bd4 {[%emt 0:07:46]} 14. Nd6+ {[%emt 0:05:50]} Ke7 {[%emt 0:05:06]} 15. Re1 {[%emt 0:16:25]} Bxe5 {[%emt 0:13:31]} 16. Nxf7 {[%emt 0:02:04]} Kxf7 {[%emt 0:03:39]} 17. Rxe5 {[%emt 0:00:40]} Nd7 {[%emt 0:04:24]} 18. Re3 {[%emt 0:05:30]} Rac8 {[%emt 0:04:09]} 19. Ra3 {[%emt 0:05:40]} Nb8 {[%emt 0:14:21]} 20. Bf4 {[%emt 0:02:08]} Rhd8+ {[%emt 0:04:36]} 21. Ke1 {[%emt 0:06:54]} e5 {[%emt 0:02:01]} 22. Bxe5 {[%emt 0:01:15]} Re8 {[%emt 0:06:28]} 23. Rf3+ {[%emt 0:02:49]} Kg8 {[%emt 0:02:42]} 24. Re3 {[%emt 0:00:31]} Nd7 {[%emt 0:02:03]} 25. Bf4 {[%emt 0:01:02]} Nf6 {[%emt 0:02:14]} 26. Bf3 {[%emt 0:04:18]} h6 {[%emt 0:04:19]} 27. h4 {[%emt 0:01:44]} Bc4 {[%emt 0:02:58]} 28. Kf2 {[%emt 0:03:20]} Rxe3 {[%emt 0:01:05]} 29. Bxe3 {[%emt 0:00:58]} Rf8 {[%emt 0:02:53]} 30. Kg2 {[%emt 0:04:02]} Bd5 {[%emt 0:01:45]} 31. Re1 {[%emt 0:05:35]} Bxf3+ {[%emt 0:00:41]} 32. Kxf3 {[%emt 0:00:09]} Nd5+ {[%emt 0:01:35]} 33. Kg2 {[%emt 0:02:04]} Re8 {[%emt 0:01:22]} 34. Bd2 {[%emt 0:01:08]} Rxe1 {[%emt 0:00:06]} 35. Bxe1 {[%emt 0:00:45]} Ne3+ {[%emt 0:00:06]} 36. Kf3 {[%emt 0:00:45]} Nxc2 {[%emt 0:00:22]} 37. Bc3 {[%emt 0:00:17]} c5 {[%emt 0:00:35]} 38. Ke2 {[%emt 0:02:25]} Nb4 {[%emt 0:00:12]} 39. Bxb4 {[%emt 0:02:25]} cxb4 {[%emt 0:00:20]} 40. Kd3 {[%emt 0:00:31]} Kf7 {[%emt 0:00:35]} 41. g4 {[%emt 0:00:40]} Ke6 {[%emt 0:00:43]} 42. Ke4 {[%emt 0:00:44]} g6 {[%emt 0:01:01]} 43. b3 {[%emt 0:01:42]} h5 {[%emt 0:00:29]} 44. g5 {[%emt 0:00:17]} a6 {[%emt 0:00:13]} 45. Kd4 {[%emt 0:00:22]} Kf5 {[%emt 0:00:08]} 46. Kd5 {[%emt 0:00:15]} b5 {[%emt 0:02:23]} 47. Kd6 {[%emt 0:00:07]} a5 {[%emt 0:05:12]} 48. Ke7 {[%emt 0:00:23]} Kg4 {[%emt 0:04:10]} 49. Kf6 {[%emt 0:00:11]} Kxh4 {[%emt 0:00:13]} 50. Kxg6 {[%emt 0:00:11]} Kg4 {[%emt 0:00:37]} 51. Kf6 {[%emt 0:00:09]} h4 {[%emt 0:01:00]} 52. g6 {[%emt 0:00:07]} h3 {[%emt 0:00:34]} 53. g7 {[%emt 0:00:08]} Kg3 {[%emt 0:00:47]} 54. g8=Q+ {[%emt 0:00:12]} Kf2 {[%emt 0:00:27]} 55. Qd5 {[%emt 0:00:44]} Kg1 {[%emt 0:00:18]} 56. Qg5+ {[%emt 0:00:19]} Kf1 {[%emt 0:00:19]} 57. Qf4+ {[%emt 0:00:22]} 1-0

[Event "FIDE WCCC Open-08 2024"]
[Site "Montesilvano"]
[Date "2024.11.18"]
[Round "4.31"]
[White "Lau, Great Boyou"]
[Black "Arsenijevic, Matija"]
[Result "1/2-1/2"]
[ECO "B10"]
[WhiteElo "1514"]
[BlackElo "1700"]
[Annotator "NA RC"]
[PlyCount "61"]
[EventDate "2024.11.18"]
[EventType "swiss"]
[EventCountry "ITA"]
[SourceTitle "playchess.com"]
[Source "ChessBase"]
[SourceQuality "1"]
[TimeControl "5400+30"]

1. e4 {[%emt 0:00:02]} c6 {[%emt 0:00:04]} 2. Nf3 {[%emt 0:00:07]} d5 {[%emt 0:00:05]} 3. exd5 {[%emt 0:00:07]} cxd5 {[%emt 0:00:05]} 4. Ne5 {[%emt 0:00:08]} Nf6 {[%emt 0:01:02]} 5. d4 {[%emt 0:00:11]} Nc6 {[%emt 0:00:48]} 6. Bb5 {[%emt 0:00:13]} Bd7 {[%emt 0:00:55]} 7. Nxd7 {[%emt 0:00:17]} Qxd7 {[%emt 0:00:25]} 8. c3 {[%emt 0:00:24]} e6 {[%emt 0:00:57]} 9. Nd2 {[%emt 0:00:29]} Bd6 {[%emt 0:00:54]} 10. O-O {[%emt 0:00:41]} a6 {[%emt 0:00:31]} 11. Bd3 {[%emt 0:00:11]} O-O {[%emt 0:01:08]} 12. Re1 {[%emt 0:00:31]} b5 {[%emt 0:01:11]} 13. Nf3 {[%emt 0:01:02]} Rfc8 {[%emt 0:06:52]} 14. Ne5 {[%emt 0:00:44]} Qe7 {[%emt 0:01:18]} 15. f4 {[%emt 0:02:01]} b4 {[%emt 0:09:45]} 16. g4 {[%emt 0:05:34]} Nd7 {[%emt 0:06:28]} 17. Qf3 {[%emt 0:03:23]} Ncxe5 {[%emt 0:04:12]} 18. fxe5 {[%emt 0:00:28]} Bc7 {[%emt 0:01:22]} 19. g5 {[%emt 0:13:06]} Ba5 {[%emt 0:04:10]} 20. cxb4 {[%emt 0:08:20]} Qxb4 {[%emt 0:03:32]} 21. Be3 {[%emt 0:08:08]} Qxe1+ {[%emt 0:08:15]} 22. Rxe1 {[%emt 0:00:07]} Bxe1 {[%emt 0:00:17]} 23. h4 {[%emt 0:06:25]} g6 {[%emt 0:03:31]} 24. h5 {[%emt 0:03:06]} Bb4 {[%emt 0:02:25]} 25. hxg6 {[%emt 0:01:50]} fxg6 {[%emt 0:03:28]} 26. Qh3 {[%emt 0:03:29]} Nf8 {[%emt 0:02:13]} 27. Qf1 {[%emt 0:02:24]} a5 {[%emt 0:02:59]} 28. Qe2 {[%emt 0:03:15]} Rab8 {[%emt 0:02:33]} 29. Bd2 {[%emt 0:03:09]} Rc6 {[%emt 0:01:45]} 30. Kf1 {[%emt 0:07:00]} Rcb6 {[%emt 0:01:59]} 31. b3 {[%emt 0:03:01]} 1/2-1/2

[Event "FIDE WCCC Open-08 2024"]
[Site "Montesilvano"]
[Date "2024.11.18"]
[Round "4.33"]
[White "Vrsalovic Acuna. Stjepan Anton"]
[Black "Ranganathan, Aadith"]
[Result "1/2-1/2"]
[ECO "C47"]
[WhiteElo "1452"]
[BlackElo "1645"]
[Annotator "NA RC"]
[PlyCount "58"]
[EventDate "2024.11.18"]
[EventType "swiss"]
[EventCountry "ITA"]
[SourceTitle "playchess.com"]
[Source "ChessBase"]
[SourceQuality "1"]
[TimeControl "5400+30"]

1. e4 {[%emt 0:00:03]} e5 {[%emt 0:00:28]} 2. Nf3 {[%emt 0:00:08]} Nc6 {[%emt 0:00:35]} 3. Nc3 {[%emt 0:01:23]} Nf6 {[%emt 0:01:31]} 4. d4 {[%emt 0:00:30]} exd4 {[%emt 0:00:46]} 5. Nxd4 {[%emt 0:00:20]} Bc5 {[%emt 0:00:34]} 6. Be3 {[%emt 0:00:23]} Bb6 {[%emt 0:00:11]} 7. Nf5 {[%emt 0:00:33]} O-O {[%emt 0:01:02]} 8. Bd3 {[%emt 0:00:32]} d5 {[%emt 0:01:12]} 9. Bxb6 {[%emt 0:01:09]} axb6 {[%emt 0:00:21]} 10. exd5 {[%emt 0:00:31]} Nxd5 {[%emt 0:00:18]} 11. Nxd5 {[%emt 1:30:28]} Qxd5 {[%emt 0:00:23]} 12. Ne3 {[%emt 0:00:00]} Qe5 {[%emt 0:02:11]} 13. c3 {[%emt 0:00:00]} Be6 {[%emt 0:01:06]} 14. a3 {[%emt 0:00:00]} Rfd8 {[%emt 0:01:52]} 15. Qc2 {[%emt 0:00:00]} h6 {[%emt 0:00:41]} 16. O-O {[%emt 0:00:00]} Rd7 {[%emt 0:08:03]} 17. Bc4 {[%emt 0:00:00]} Rad8 {[%emt 0:03:52]} 18. Bxe6 {[%emt 0:00:00]} Qxe6 {[%emt 0:00:29]} 19. Rfd1 {[%emt 0:00:00]} Rxd1+ {[%emt 0:00:26]} 20. Rxd1 {[%emt 0:00:00]} Rxd1+ {[%emt 0:00:26]} 21. Qxd1 {[%emt 0:00:00]} Qa2 {[%emt 0:00:21]} 22. Qc2 {[%emt 0:00:00]} Qa1+ {[%emt 0:01:44]} 23. Nd1 {[%emt 0:00:00]} Ne5 {[%emt 0:01:22]} 24. h3 {[%emt 0:00:00]} Nc4 {[%emt 0:00:36]} 25. Kh2 {[%emt 0:00:00]} b5 {[%emt 0:00:27]} 26. Qb3 {[%emt 0:00:00]} c6 {[%emt 0:01:10]} 27. Qc2 {[%emt 0:00:00]} Qa2 {[%emt 0:01:44]} 28. Qd3 {[%emt 0:00:00]} Qb3 {[%emt 0:03:35]} 29. Qd8+ {[%emt 0:00:00]} Kh7 {[%emt 0:01:28]} 1/2-1/2